{"text_format":"1","workbook":"xlsx","n_sheets":4,"sheets":["View Screen","Data Screen","Help","Calculation Screen"],"not_rendered":{"charts":0,"images":11,"macros":1,"external_links":0,"defined_names":3,"comments":0,"pivot_tables":0},"unopened":[],"bounds":{"document_bytes":16777216,"sheet_cells":100000,"rows_first":2000,"rows_last":500,"rows_between":2000,"halvings":0,"cell_chars":16384,"cell_head_chars":4096},"cells_cut":0,"cells_raw":0,"read":"whole","date_system":"1900"}

{"sheet":"View Screen","index":0,"n_rows":30,"n_cols":13,"rows_kept":30,"cut":false,"hidden":false,"merged":[[32,1,32,12],[27,5,27,6],[27,7,27,8],[27,9,27,10],[5,10,12,12],[13,10,18,12],[20,10,20,12],[21,10,21,12],[31,1,31,12]]}
[]
[null,null,{"$f":"+'Data Screen'!C9","v":"Pressure / Volume Calculator"}]
[]
[]
[]
[null,null,null,null,null,null,null,null,null,null,{"$f":"+'Data Screen'!C16","v":"Note   this program is for guidance only and the calculations are approximations based on the data entered"}]
[]
[]
[]
[]
[]
[]
[]
[null,null,null,null,null,null,null,null,null,null,{"$f":"+'Data Screen'!C17","v":"We recommend the fitting of a measuring box for  accurate analysis "}]
[]
[]
[]
[]
[]
[]
[null,{"$f":"+'Data Screen'!C10","v":"Existing Maximum Pressure"},null,null,163,{"$f":"+'Calculation Screen'!F8","v":163},{"$f":"+'Calculation Screen'!G8","v":"psi"},{"$f":"+'Calculation Screen'!H8","v":11.230700000000001},{"$f":"+'Calculation Screen'!I8","v":"Bar"}]
[null,{"$f":"+'Data Screen'!C11","v":"Required Pressure"},165,null,null,{"$f":"+'Calculation Screen'!F9","v":165},{"$f":"+'Calculation Screen'!G9","v":"psi"},{"$f":"+'Calculation Screen'!H9","v":11.368500000000001},{"$f":"+'Calculation Screen'!I9","v":"Bar"}]
[]
[null,{"$f":"+'Data Screen'!C12","v":"Existing Compressor Capacity"},701,null,null,{"$f":"+'Calculation Screen'!F11","v":701},{"$f":"+'Calculation Screen'!G11","v":"cfm"},{"$f":"+'Calculation Screen'!H11","v":330.87199999999996},{"$f":"+'Calculation Screen'!I11","v":"l/s"},{"$f":"+'Calculation Screen'!J11","v":19.8383},{"$f":"+'Calculation Screen'!K11","v":"m3/m"},{"$f":"+'Calculation Screen'!L11","v":1190.298},{"$f":"+'Calculation Screen'!M11","v":"m3/h"}]
[]
[null,{"$f":"+'Data Screen'!C13","v":"Additional Capacity Required"},null,null,null,{"$f":"+'Calculation Screen'!F13","v":7.9030327448143867},{"$f":"+'Calculation Screen'!G13","v":"cfm"},{"$f":"+'Calculation Screen'!H13","v":3.7278456343464086},{"$f":"+'Calculation Screen'!I13","v":"l/s"},{"$f":"+'Calculation Screen'!J13","v":0.22365582667824713},{"$f":"+K24","v":"m3/m"},{"$f":"+'Calculation Screen'!L13","v":13.419349600694828},{"$f":"+M24","v":"m3/h"}]
[]
[null,{"$f":"+'Data Screen'!C14","v":"% Increase in Air Volume Required"},null,null,null,{"$f":"+'Calculation Screen'!F15:G15","v":1.1273941148094702E-2}]
[]
[null,{"$f":"+'Data Screen'!C15","v":"Total Required Capacity"},null,null,null,{"$f":"+'Calculation Screen'!F17","v":709.35167274481432},{"$f":"+'Calculation Screen'!G17","v":"cfm"},{"$f":"+'Calculation Screen'!H17","v":334.59984563434637},{"$f":"+'Calculation Screen'!I17","v":"l/s"},{"$f":"+'Calculation Screen'!J17","v":20.074652338678245},{"$f":"+K24","v":"m3/m"},{"$f":"+'Calculation Screen'!L17","v":1204.4791403206948},{"$f":"+M26","v":"m3/h"}]

{"sheet":"Data Screen","index":1,"n_rows":19,"n_cols":3,"rows_kept":19,"cut":false,"hidden":true,"merged":[]}
[null,{"$f":"+C9","v":"Pressure / Volume Calculator"}]
[]
[]
[null,{"$f":"+B5","v":"English text"},{"$f":"+C5","v":"Translation Text"}]
[null,"English text","Translation Text"]
[null,"Click here to change Language","Click here to change Language"]
[null,"Click here for Help","Click here for Help"]
[null,"Click Here to return viewing screen","Click Here to Return Main Screen"]
[null,"Capacity / Pressure Relationship Calculator","Pressure / Volume Calculator"]
[null,"Existing Pressure","Existing Maximum Pressure"]
[null,"Pressure required","Required Pressure"]
[null,"Existing Capacity","Existing Compressor Capacity"]
[null,"Additional Capacity Required","Additional Capacity Required"]
[null,"% Increase in Air Volume Required","% Increase in Air Volume Required"]
[null,"Total Required Capacity","Total Required Capacity"]
[null,"Note this program only is for guidance only and the calculations are approximations based on the data entered","Note   this program is for guidance only and the calculations are approximations based on the data entered"]
[null,"We would recommend the fitting of a measuring box for more accurate analysis ","We recommend the fitting of a measuring box for  accurate analysis "]
[]
[null,null,{"$f":"+C8","v":"Click Here to Return Main Screen"}]

{"sheet":"Help","index":2,"n_rows":2,"n_cols":13,"rows_kept":2,"cut":false,"hidden":true,"merged":[[1,12,2,14]]}
[]
[null,null,null,null,null,null,null,null,null,null,null,null,{"$f":"+'Data Screen'!C8","v":"Click Here to Return Main Screen"}]

{"sheet":"Calculation Screen","index":3,"n_rows":17,"n_cols":13,"rows_kept":17,"cut":false,"hidden":true,"merged":[[14,5,14,6],[14,7,14,8],[14,9,14,10],[14,11,14,12]]}
[]
[]
[]
[]
[]
[null,"Capacity / Pressure Relationship Calculator"]
[]
[null,"Existing Pressure",null,null,null,{"$f":"+'View Screen'!E21","v":163},"psi",{"$f":"F8*0.0689","v":11.230700000000001},"Bar"]
[null,"Pressure required",null,null,null,{"$f":"+'View Screen'!C22","v":165},"psi",{"$f":"F9*0.0689","v":11.368500000000001},"Bar"]
[]
[null,"Existing Capacity",null,null,null,{"$f":"+'View Screen'!C24","v":701},"cfm",{"$f":"F11*0.472","v":330.87199999999996},"l/s",{"$f":"F11*0.0283","v":19.8383},"m3/m",{"$f":"+J11*60","v":1190.298},"m3/h"]
[]
[null,"Additional Capacity Required",null,null,null,{"$f":"H13*2.12","v":7.9030327448143867},"cfm",{"$f":"H17-H11","v":3.7278456343464086},"l/s",{"$f":"F13*0.0283","v":0.22365582667824713},"m3/m",{"$f":"+J13*60","v":13.419349600694828},"m3/h"]
[]
[null,"% Increase in Air Volume Required",null,null,null,{"$f":"+F13/F11","v":1.1273941148094702E-2}]
[]
[null,"Total Required Capacity",null,null,null,{"$f":"H17*2.12","v":709.35167274481432},"cfm",{"$f":"H11*(H9+1)/(H8+1)","v":334.59984563434637},"l/s",{"$f":"F17*0.0283","v":20.074652338678245},"m3/m",{"$f":"+J17*60","v":1204.4791403206948},"m3/h"]